Company(T),Trans.date,Supplier Name(T),TransNo,Amount,Irrecoverable VAT,Service/Dept(T),Procurement Category,Account code,Account code(T),Narrative/Purpose of Spend,Govt Procurement card
East Cambridgeshire District Council,27/10/2016,Rail Travel ,5105603,485.1,,National Practitioner Support Programme,Employees,1051,Staff Travelling,Redacted Personal Data, Y
East Cambridgeshire District Council,19/10/2016,Abritas Ltd,637108,"1,082.28",,Homelessness,Employees,1130,Training - In House,Homelessness Training 1/6/16,
East Cambridgeshire District Council,18/10/2016,Breckland Council,637101,"1,500.00",,Management Team,Employees,1135,Training - External,Local Authority Challenge Team Entry 19/10/16,
East Cambridgeshire District Council,12/09/2016,Chartered Institute of Housing,637102,"1,010.00",,National Practitioner Support Programme,Employees,1135,Training - External,Redacted Personal Data,
East Cambridgeshire District Council,05/10/2016,Cambridge Regional College,637033,650,,Training,Employees,1136,Qualifications,Redacted Personal Data Accounting Level 1 & 2,
East Cambridgeshire District Council,12/10/2016,University of Westminster,637061,"3,375.00",,Planning,Employees,1136,Qualifications,Redacted Personal Data- 2016/17 MA Urban & Regional Planning,
East Cambridgeshire District Council,30/09/2016,The Law Society Gazette,636945,"1,955.00",,Human Resources,Employees,1140,Staff Advertising,Client 3/16 Page - Law Society Gazette,
East Cambridgeshire District Council,18/10/2016,Local World Ltd - Cambridge Newspapers,637097,940,,Human Resources,Employees,1140,Staff Advertising,Order Discount - 20 local credits,
East Cambridgeshire District Council,13/10/2016,ALACE,1135453,540,,Training,Employees,1160,Professional Subscriptions,New ALACE membership for  Redacted Personal Data- 18 Months,
East Cambridgeshire District Council,28/09/2016,Airelec Maintenance Ltd,636958,850,,The Grange,Premises,2020,Premises Contract Work,Replace Air Con Unit Planning Office,
East Cambridgeshire District Council,03/10/2016,Airelec Maintenance Ltd,636975,"1,489.00",,Homelessness,Premises,2020,Premises Contract Work,Supply & Install new AC System,
East Cambridgeshire District Council,14/10/2016,Clarity Homes Ltd,637093,692.98,,The Grange,Premises,2020,Premises Contract Work,Drain circuit & supply & install Napic valve,
East Cambridgeshire District Council,25/10/2016,Aztek Services Ltd,1135565,758,,E Space South,Premises,2020,Premises Contract Work,Annual service & monitoring. BT Redcare. Espace South,
East Cambridgeshire District Council,11/10/2016,East Cambs Trading Co Ltd,637036,"7,500.00",,Miscellaneous Properties,Premises,2030,Premises Asset Management,Services contract & Planning app management Qtr 2,
East Cambridgeshire District Council,12/10/2016,Harris Decorating,637057,"1,400.00",,70 - 74 Market Street Ely,Premises,2030,Premises Asset Management,Exterior Decoration of  Redacted Personal Data,
East Cambridgeshire District Council,06/09/2016,CamAlarms Limited,637110,"6,351.00",,Asset Management,Premises,2030,Premises Asset Management,Replace Existing Non Addressable Devices - The Grange,
East Cambridgeshire District Council,05/10/2016,E.ON UK plc,1135391,"1,234.04",,Parking Of Vehicles,Premises,2110,Electricity,011397609520 St/lighting car parks,
East Cambridgeshire District Council,24/10/2016,Southern Electric,1135543,534.19,,"PC Cloisters, Ely",Premises,2110,Electricity,4229351217 Public Toilets Cloisters Ely,
East Cambridgeshire District Council,24/10/2016,Southern Electric,1135546,"1,053.12",,The Grange,Premises,2110,Electricity,4229351217 Office Services The Grange,
East Cambridgeshire District Council,24/10/2016,Southern Electric,1135551,659.91,,Parking Of Vehicles,Premises,2110,Electricity,4229351217 St Ltg Car Park Newnham Street Ely,
East Cambridgeshire District Council,27/10/2016,ESPO,1135641,648.3,,The Grange,Premises,2120,Gas,The Grange M040A0173612A6 30/4/16 to 30/9/16,
East Cambridgeshire District Council,17/10/2016,ESPO,1135477,-604.68,,E Space North,Premises,2120,Gas,M025A0234205A6 29/2/16-31/3/16,
East Cambridgeshire District Council,12/10/2016,Elliott,637053,898.9,,Local Elections,Premises,2211,Rent Premises/Room Hire,Davison Road 5-7/10/16,
East Cambridgeshire District Council,17/10/2016,East Cambs District Council,1135480,996.18,,E Space South,Premises,2310,General Rates,907812676 Unit 8 Espace South,
East Cambridgeshire District Council,26/10/2016,East Cambs District Council,1135564,996.18,,E Space South,Premises,2310,General Rates,Unit 8 E-Space South,
East Cambridgeshire District Council,21/10/2016,Cranbrook Plants,637147,636.8,,Parks And Open Spaces,Premises,2810,Grounds Materials,,
East Cambridgeshire District Council,21/10/2016,Barcham Trees plc,637152,"1,690.88",,Jubilee Gardens,Premises,2810,Grounds Materials,Plants,
East Cambridgeshire District Council,14/10/2016,AJ & R Scamblers & Sons Ltd,637100,659.2,,Sanctuary Grasscutting,Transport,3010,Vehicle Repairs,Service & repair Amazone AE13 CHX,
East Cambridgeshire District Council,04/10/2016,Be Fuelcards,1135382,591.26,,Parks And Open Spaces,Transport,3021,Derv,Sept Fuelcards,
East Cambridgeshire District Council,06/10/2016,Post Office Ltd,1135395,650,,Weekly Collection Support Grant,Transport,3024,Vehicle Excise Duty,Road Fund Licence,
East Cambridgeshire District Council,06/10/2016,Post Office Ltd,1135396,650,,Weekly Collection Support Grant,Transport,3024,Vehicle Excise Duty,Road Fund Licence,
East Cambridgeshire District Council,12/10/2016,Greys of Ely,637045,530,,Economic Development Admin,Transport,3210,Hired Vehicles & Plant,Witchford VC & Ely College 19/10/16,
East Cambridgeshire District Council,19/10/2016,G & J Peck Ltd,637115,731.34,,FX57 FCC Tractor,Supplies & Services,4011,Equipment - Repairs,FX57FCC - Oil Leak,
East Cambridgeshire District Council,27/10/2016,B2B Quote Ltd,637169,598,,Parks And Open Spaces,Supplies & Services,4015,S106 Spend,Tender Training on 23/11/16,
East Cambridgeshire District Council,27/10/2016,B2B Quote Ltd,637170,598,,Parks And Open Spaces,Supplies & Services,4015,S106 Spend,Writing Strong Tenders 24/11/16,
East Cambridgeshire District Council,27/10/2016,Mainland Aggregate,5105603,"1,128.08",,Parks And Open Spaces,Supplies & Services,4015,S106 Spend,Stone/Cobbles , Y
East Cambridgeshire District Council,20/10/2016,ESPO,637113,832,,The Grange,Supplies & Services,4020,Furniture - Purchase,,
East Cambridgeshire District Council,17/10/2016,Bunzl  Cleaning & Hygiene Supplies,637082,"1,032.42",,The Grange,Supplies & Services,4030,Materials - Purchase,,
East Cambridgeshire District Council,17/10/2016,Bunzl  Cleaning & Hygiene Supplies,637083,"1,314.46",,Public Conveniences,Supplies & Services,4030,Materials - Purchase,,
East Cambridgeshire District Council,20/10/2016,Park Retail Ltd t/as Love2Reward,637201,"1,960.00",,Recycling Reward Scheme,Supplies & Services,4030,Materials - Purchase,Love 2 shop vouchers,
East Cambridgeshire District Council,27/10/2016,Argos,5105603,216.66,,Street Cleansing,Supplies & Services,4030,Materials - Purchase,camera SD Card , Y
East Cambridgeshire District Council,27/10/2016,Metals4U,5105603,198.18,,Parks And Open Spaces,Supplies & Services,4030,Materials - Purchase,Flanges, Y
East Cambridgeshire District Council,27/10/2016,Fire Protection,5105603,22.69,,The Grange,Supplies & Services,4030,Materials - Purchase,Anti Tamper Seals , Y
East Cambridgeshire District Council,27/10/2016,Pagers Direct,5105603,106,,Emergency Planning,Supplies & Services,4030,Materials - Purchase,CPP Pager, Y
East Cambridgeshire District Council,16/09/2016,Octoprint,637012,645,,National Practitioner Support Programme,Supplies & Services,4310,Printing & Stationery,NPSS,
East Cambridgeshire District Council,20/10/2016,Corporate Mailing Solutions,637111,"1,605.30",,Registration of Electors,Supplies & Services,4310,Printing & Stationery,2016 Canvas Mailing,
East Cambridgeshire District Council,20/10/2016,Corporate Mailing Solutions,637112,"1,369.82",,Registration of Electors,Supplies & Services,4310,Printing & Stationery,2016 Canvas Mailing,
East Cambridgeshire District Council,27/10/2016,1 x Banner Tradeprint,5105603,28.33,,Marketing & Grants,Supplies & Services,4310,Printing & Stationery,1 x Banner , Y
East Cambridgeshire District Council,27/10/2016,UK Office Direct,5105603,153.14,,Homelessness,Supplies & Services,4310,Printing & Stationery,Files & Wallets, Y
East Cambridgeshire District Council,27/10/2016,Tradeprint,5105603,43.77,,Marketing & Grants,Supplies & Services,4310,Printing & Stationery,1 x Banner , Y
East Cambridgeshire District Council,23/09/2016,IHS (Global) Limited,636996,"8,650.00",,Building Regulations Admin,Supplies & Services,4320,Publications & books,CIS Core+CS/Online,
East Cambridgeshire District Council,23/09/2016,Thomson Reuters t/as Sweet & Maxwell Ltd,637167,694,,Legal,Supplies & Services,4320,Publications & books,LA Licensing LL Cont2 & envy LG Law V1/2/4/5,
East Cambridgeshire District Council,30/09/2016,Matchtech Group Ltd,636946,"1,554.00",,Planning,Supplies & Services,4401,Agency Workers,Redacted Personal Data - Week Commencing 19/9/16,
East Cambridgeshire District Council,02/09/2016,Barry Cornelius Associates Ltd,637018,"2,250.00",,Finance - Accountancy,Supplies & Services,4401,Agency Workers,Redacted Personal Data Aug 2016,
East Cambridgeshire District Council,03/10/2016,Barry Cornelius Associates Ltd,637028,"2,250.00",,Finance - Accountancy,Supplies & Services,4401,Agency Workers,Redacted Personal DataSept 2016,
East Cambridgeshire District Council,07/10/2016,Matchtech Group Ltd,637059,"1,554.00",,Planning,Supplies & Services,4401,Agency Workers,Redacted Personal Data - Week Commencing 26/9/16,
East Cambridgeshire District Council,14/10/2016,Matchtech Group Ltd,637077,"1,554.00",,Planning,Supplies & Services,4401,Agency Workers,Redacted Personal Data - Week Commencing 3/10/16,
East Cambridgeshire District Council,21/10/2016,Matchtech Group Ltd,637140,"1,554.00",,Planning,Supplies & Services,4401,Agency Workers,Redacted Personal Data- Week Commencing 10/10/16,
East Cambridgeshire District Council,11/10/2016,G4S Cash Solutions (UK) Ltd,1135423,822.99,,Angel Drove Commuters Car Park,Supplies & Services,4412,Courier Service,Cont 3342504 1/11/16-30/11/16,
East Cambridgeshire District Council,18/10/2016,Cambridgeshire County Council,1135483,"18,284.00",,Land Charges Admin,Supplies & Services,4420,Inquiries,Highway info 2nd qtr 1/7/16 to 30/9/16,
East Cambridgeshire District Council,10/10/2016,King Street Housing Society Ltd,1135424,975,,Homelessness Prevention,Supplies & Services,4421,Sanctuary Homelessness/Rent Deposit,Redacted Personal Data,
East Cambridgeshire District Council,07/10/2016,Sanctuary Group,1135409,"7,216.33",,Homelessness,Supplies & Services,4423,Hostel Charges/Voids,Void receharges  Redacted Personal Data July-Sept 16,
East Cambridgeshire District Council,07/10/2016,Sanctuary Group,1135410,"3,812.48",,Homelessness,Supplies & Services,4423,Hostel Charges/Voids,Void recharges  Redacted Personal Data-Sept 16,
East Cambridgeshire District Council,07/10/2016,Sanctuary Group,1135411,"4,441.92",,Homelessness,Supplies & Services,4423,Hostel Charges/Voids,Void re-charges Redacted Personal Data-Sept 2016,
East Cambridgeshire District Council,07/10/2016,Sanctuary Group,1135412,"1,099.56",,Homelessness,Supplies & Services,4423,Hostel Charges/Voids,Void recharges  Redacted Personal Data Jul-Spet 16,
East Cambridgeshire District Council,13/10/2016,Wood Green Animal Shelters,1135448,949.98,,Dog Warden Scheme,Supplies & Services,4424,Kennelling,Strays Charges,
East Cambridgeshire District Council,08/07/2016,AmeyCespa (East) Limited,637011,699.17,,Sanctuary Grasscutting,Supplies & Services,4428,Tipping Fees,May/June collections,
East Cambridgeshire District Council,03/10/2016,Foresight Consulting (UK) Ltd,636972,"10,975.80",,Corp.Man.Policy Research/Review,Supplies & Services,4430,Consultants Fees,Transformation programme  Redacted Personal Data,
East Cambridgeshire District Council,04/10/2016,Carter Jonas LLP,636974,"1,500.00",,Planning,Supplies & Services,4430,Consultants Fees,RIA Scoping letter Angel drove,
East Cambridgeshire District Council,03/10/2016,Foresight Consulting (UK) Ltd,636976,"2,647.80",,Corp.Man.Policy Research/Review,Supplies & Services,4430,Consultants Fees,Redacted Personal Data Technical Consultant 4.5 days,
East Cambridgeshire District Council,22/09/2016,Landscope Land & Property Ltd,636997,960.4,,Planning,Supplies & Services,4430,Consultants Fees,16/00556/FUL & 16/00633/FUL,
East Cambridgeshire District Council,12/10/2016,East of England Local Government Association,637124,"3,147.95",,Corp.Man.Policy Research/Review,Supplies & Services,4430,Consultants Fees,Redacted Personal Data - Sept 2016,
East Cambridgeshire District Council,24/10/2016,Ivy Legal Limited,637138,"11,800.00",,Planning,Supplies & Services,4430,Consultants Fees,Sappers Rest,
East Cambridgeshire District Council,26/10/2016,Dixon Searle Partnership Ltd,637173,"11,193.75",,Local Plan Preparation,Supplies & Services,4430,Consultants Fees,Local Plan Viability Stage 2 12.5%. Stage 3 & 3 25%,
East Cambridgeshire District Council,21/10/2016,Cambridgeshire County Council,1135522,"4,887.50",,Planning,Supplies & Services,4430,Consultants Fees,Archaeological Services April-Sept 2016,
East Cambridgeshire District Council,27/10/2016,Peterborough City Council,637185,"2,014.15",,Legal,Supplies & Services,4443,Solicitors Fees,Q1 Reports,
East Cambridgeshire District Council,21/10/2016,Purchase Power,637143,"1,013.00",,E Space North,Supplies & Services,4510,Postage,Meter Reset & Transaction Fee 15/9/16,
East Cambridgeshire District Council,15/10/2016,Neopost Ltd,1135466,"3,000.00",,DMS,Supplies & Services,4510,Postage,"Postage Recredit - 23/9, 5/10 & 14/10",
East Cambridgeshire District Council,19/10/2016,Royal Mail Group plc,1135508,725.6,,Registration of Electors,Supplies & Services,4510,Postage,Account 0154796000,
East Cambridgeshire District Council,19/09/2016,Purchase Power,1135360,"-1,083.61",,E Space North,Supplies & Services,4510,Postage,"Meter Reset & Credit for Mailmark Base, Feeder & Meter",
East Cambridgeshire District Council,29/09/2016,Virgin Media Payments Ltd - 743058701,1135369,"1,991.32",,The Grange,Supplies & Services,4520,Telephone,Account 743058701,
East Cambridgeshire District Council,05/10/2016,Virgin Media Payments - 923467,1135388,903.88,,Information Technology,Supplies & Services,4522,Contributions (IT Only CCN),923467 October 2016,
East Cambridgeshire District Council,02/10/2016,107 Star Cambridge,1135373,-995,,Thursday Market,Supplies & Services,4530,Adverts Other Than Staff,Design & Building of website,
East Cambridgeshire District Council,30/09/2016,Verve Digital Ltd,636951,"4,700.00",,Marketing & Grants,Supplies & Services,4540,Promotion Costs,"Development of Visit Ely, OCH & Ely Eel Festival Websites",
East Cambridgeshire District Council,27/10/2016,Tradeprint,5105603,120.65,,Health and Wellbeing,Supplies & Services,4540,Promotion Costs,3 x Banner , Y
East Cambridgeshire District Council,27/10/2016,Facebook,5105603,60.07,,Health and Wellbeing,Supplies & Services,4540,Promotion Costs,Promotion , Y
East Cambridgeshire District Council,04/10/2016,Vodafone Ltd,1135380,"1,131.04",,Information Technology,Supplies & Services,4550,IT Licences,GSI Convergence 1/7/16-30/9/16,
East Cambridgeshire District Council,04/10/2016,Andy Grant Ltd,1135387,500,,Information Technology,Supplies & Services,4550,IT Licences,Monthly Hostin & Support 1/10/16-31/101/6,
East Cambridgeshire District Council,10/10/2016,CCS Media Ltd,637022,611.28,,Information Technology,Supplies & Services,4551,Hardware Purchases/Maint,"IIyama Prolite 19""",
East Cambridgeshire District Council,10/10/2016,CCS Media Ltd,637023,729.18,,Information Technology,Supplies & Services,4551,Hardware Purchases/Maint,"IIyama Prolite 24""",
East Cambridgeshire District Council,14/10/2016,CCS Media Ltd,637122,534.09,,Information Technology,Supplies & Services,4551,Hardware Purchases/Maint,,
East Cambridgeshire District Council,19/10/2016,European Electronique Ltd,637182,"112,638.38",,Information Technology,Supplies & Services,4551,Hardware Purchases/Maint,,
East Cambridgeshire District Council,13/10/2016,KPR Midlink Ltd,637058,"4,800.00",,Thursday Market,Supplies & Services,4553,Software Purchases/Maint,MACCS2 Database Software,
East Cambridgeshire District Council,27/10/2016,Marine Superstore,5105603,29.09,,Civic Relations,Supplies & Services,4614,Civic Expenses,Red Ensign , Y
East Cambridgeshire District Council,17/10/2016,Association of Electoral Admininstrators Ltd,637092,715,,Registration of Electors,Supplies & Services,4620,Staff Conference Expenses,Redacted Personal Datap AEA AGM Feb2017,
East Cambridgeshire District Council,11/10/2016,Institute of Licensing (Events) Ltd,637116,685,,Licencing - Env Services,Supplies & Services,4620,Staff Conference Expenses,National Training Conference - 16/11/16 -  Redacted Personal Data,
East Cambridgeshire District Council,12/10/2016,Rural Cambs Citizens Advice Bureau,637051,"23,673.40",,Community Projects & Grants,Supplies & Services,4700,Grants To Voluntary Organisations,SLA 2016/17 2nd half year instalment,
East Cambridgeshire District Council,17/10/2016,Voluntary & Community Action East Cambridgeshire,637091,"9,964.00",,Community Projects & Grants,Supplies & Services,4700,Grants To Voluntary Organisations,SLA 2/2 Second Instalment,
East Cambridgeshire District Council,26/10/2016,East Cambs Neighbourhood Watch Assoc.,637174,500,,Community Safety,Supplies & Services,4713,Grants - Contributions,Neighbourhood Watch Campaigns,
East Cambridgeshire District Council,11/10/2016,Snail Tales,637179,"1,000.00",,Community Projects & Grants,Supplies & Services,4729,Grants - Sporting/Village Halls,Comm Fund Grant,
East Cambridgeshire District Council,27/10/2016,OS Maps,5105603,16.66,,Street Cleansing,Supplies & Services,4780,Subscriptions - General,Subscription , Y
East Cambridgeshire District Council,06/10/2016,Unison (10455),1135404,591.35,,Payroll,Supplies & Services,4910,Other Payments,Membership September 2016,
East Cambridgeshire District Council,13/10/2016,PVS Holdings Ltd,1135457,"1,370.51",,Home Improvement Agency Services,Supplies & Services,4938,Client Contribution,PP Inv 34312 -  Redacted Personal Data,
East Cambridgeshire District Council,20/10/2016,Trevor Benton Construction Ltd,1135513,"12,180.90",,Home Improvement Agency Services,Supplies & Services,4938,Client Contribution,C & R - 2nd Stage payment  Redacted Personal Data,
East Cambridgeshire District Council,03/10/2016,East of England Local Government Association,637035,"3,400.00",,Public Relations,Third Party Payments,5010,Contracted Services,Redacted Personal Data 8 days Sept 16,
East Cambridgeshire District Council,05/10/2016,SLM Ltd,1135399,"9,186.00",,Paradise Pool,Third Party Payments,5010,Contracted Services,Management Fee - October 2016,
East Cambridgeshire District Council,31/10/2016,Veolia ES (UK) Ltd,1135653,"1,479.17",,Bulk Waste,Third Party Payments,5010,Contracted Services,Collections 1/9/16-30/9/16,
East Cambridgeshire District Council,31/10/2016,Veolia ES (UK) Ltd,1135653,"30,603.34",,Recycling,Third Party Payments,5010,Contracted Services,Collections 1/9/16-30/9/16,
East Cambridgeshire District Council,31/10/2016,Veolia ES (UK) Ltd,1135653,"30,603.34",,Recycling Organic Waste,Third Party Payments,5010,Contracted Services,Collections 1/9/16-30/9/16,
East Cambridgeshire District Council,31/10/2016,Veolia ES (UK) Ltd,1135653,"72,410.21",,Refuse Collection,Third Party Payments,5010,Contracted Services,Collections 1/9/16-30/9/16,
East Cambridgeshire District Council,31/10/2016,Veolia ES (UK) Ltd,1135653,"40,828.33",,Weekly Collection Support Grant,Third Party Payments,5010,Contracted Services,Collections 1/9/16-30/9/16,
East Cambridgeshire District Council,31/10/2016,Veolia ES (UK) Ltd,1135653,"44,943.26",,Street Cleansing,Third Party Payments,5010,Contracted Services,Collections 1/9/16-30/9/16,
East Cambridgeshire District Council,03/10/2016,Breckland Council,1135371,"38,358.90",,Council Tax Collection Costs,Third Party Payments,5020,ARP Services,Provision od services 2016/17,
East Cambridgeshire District Council,03/10/2016,Breckland Council,1135371,"47,059.53",,Housing Benefits,Third Party Payments,5020,ARP Services,Provision od services 2016/17,
East Cambridgeshire District Council,03/10/2016,Breckland Council,1135371,"9,716.74",,NNDR Collection costs,Third Party Payments,5020,ARP Services,Provision od services 2016/17,
East Cambridgeshire District Council,03/10/2016,Breckland Council,1135371,"-1,016.11",,Anglia Revenue Partnerships (ARP),Third Party Payments,5020,ARP Services,Provision od services 2016/17,
East Cambridgeshire District Council,11/10/2016,East Cambs Trading Co Ltd,637036,"4,074.00",,Angel Drove Commuters Car Park,Capital Costs,C302,Consultants Fees,Services contract & Planning app management Qtr 2,
East Cambridgeshire District Council,11/10/2016,East Cambs Trading Co Ltd,637036,"3,829.00",,Littleport Station Car Park,Capital Costs,C302,Consultants Fees,Services contract & Planning app management Qtr 2,
East Cambridgeshire District Council,13/10/2016,Anglia Stairlifts Ltd,1135460,"7,170.00",,Mandatory Disabled Fac.Grant,Capital Costs,C402,Home Imp.Grant 50% advance,Redacted Personal Data,
East Cambridgeshire District Council,13/10/2016,RKS Builders Ltd,1135461,"9,600.00",,Mandatory Disabled Fac.Grant,Capital Costs,C402,Home Imp.Grant 50% advance,Redacted Personal Data,
East Cambridgeshire District Council,13/10/2016,PVS Holdings Ltd,1135458,"2,055.77",,Mandatory Disabled Fac.Grant,Capital Costs,C404,Home Imp.Grant. Final payment,Redacted Personal Data,
East Cambridgeshire District Council,13/10/2016,Trevor Benton Construction Ltd,1135459,"2,138.14",,Mandatory Disabled Fac.Grant,Capital Costs,C404,Home Imp.Grant. Final payment,Redacted Personal Data,
East Cambridgeshire District Council,13/10/2016,Cornerstone East Anglia Ltd,1135456,"3,000.00",,Home Repair Assistance,Capital Costs,C405,Home Repair Grants,Redacted Personal Data,
East Cambridgeshire District Council,13/10/2016,George Collin & Sons Ltd,1135462,"3,000.00",,Home Repair Assistance,Capital Costs,C405,Home Repair Grants,Redacted Personal Data,
East Cambridgeshire District Council,06/10/2016,Prickwillow Village Hall,1135402,730,,Section 106 Agreements,Section 106,P360,Section 106 Rev Payments,S106 transfer - Replacement external security lighting,
East Cambridgeshire District Council,06/10/2016,Prickwillow Village Council,1135403,"1,000.00",,Section 106 Agreements,Section 106,P360,Section 106 Rev Payments,S106 transfer - New Village Sign,
East Cambridgeshire District Council,11/10/2016,Soham Town Council,1135425,"542,436.00",,Section 106 Agreements,Section 106,P360,Section 106 Rev Payments,Grant for refurbishment of Walter Gidney Pavilion,
East Cambridgeshire District Council,26/10/2016,The Copper Pot,637180,508.5,,Cromwell House,Merchandising Stock,P730,Purchase - Souvenirs & Gifts,,
